bitfinex/quotes_BTCUSD_20250420
["timestamp","ask_amount","ask_price","bid_price","bid_amount"]
[1745152543144,0.0485,84298.0,84297.0,1.21864]
[1745152543339,0.0485,84298.0,84297.0,1.22516509]
[1745152546138,0.0485,84298.0,84297.0,1.36024509]
[1745152557032,0.0485,84298.0,84297.0,1.22516509]
[1745152557234,0.0485,84298.0,84297.0,1.36028509]
[1745152569753,0.0485,84298.0,84297.0,1.35742209]
[1745152569983,0.0485,84298.0,84297.0,1.3600699]
[1745152571832,0.0971,84307.0,84297.0,1.3600699]
[1745152572041,0.11944791,84306.0,84297.0,1.3600699]
[1745152576575,0.11944791,84306.0,84298.0,0.13504]
[1745152577005,0.11944791,84306.0,84299.0,0.0062299]
[1745152577578,0.0473,84305.0,84299.0,0.0062299]
[1745152577779,0.11944791,84304.0,84299.0,0.0062299]
[1745152578417,0.0473,84303.0,84299.0,0.0062299]
[1745152578647,0.11944791,84302.0,84299.0,0.0062299]
[1745152579714,0.11944791,84302.0,84299.0,0.02037015]
[1745152580585,0.11944791,84302.0,84300.0,0.13508]
[1745152580823,0.0471,84301.0,84300.0,0.13508]
[1745152581054,0.16654791,84301.0,84300.0,0.13508]
[1745152587196,0.16654791,84301.0,84300.0,0.14079822]
[1745152591202,0.16754791,84301.0,84300.0,0.14079822]
[1745152591530,0.21584791,84301.0,84300.0,0.14079822]
[1745152596272,0.23038876,84301.0,84300.0,0.00571822]
[1745152596512,0.23038876,84301.0,84300.0,0.14079822]
[1745152596744,0.23038876,84301.0,84300.0,0.13508]
[1745152596968,0.23038876,84301.0,84300.0,0.14082206]
[1745152597652,0.63928876,84301.0,84300.0,0.00574206]
[1745152597884,0.63928876,84301.0,84300.0,0.14082206]
[1745152598067,0.63928876,84301.0,84300.0,0.13508]
[1745152598321,0.63928876,84301.0,84300.0,0.14082206]
[1745152599619,0.63928876,84301.0,84300.0,0.00574206]
[1745152599856,0.68928876,84301.0,84300.0,0.14082206]
[1745152600073,0.68928876,84301.0,84300.0,0.13508]
[1745152600292,0.68928876,84301.0,84300.0,0.14082206]
[1745152600953,0.63928876,84301.0,84300.0,0.14082206]
[1745152603873,0.62474791,84301.0,84300.0,0.14082206]
[1745152604295,0.63928876,84301.0,84300.0,0.14082206]
[1745152605139,0.63928876,84301.0,84300.0,0.00574206]
[1745152605346,0.63928876,84301.0,84300.0,0.13504]
[1745152605549,0.63928876,84301.0,84300.0,0.14091241]
[1745152611986,0.76398876,84301.0,84300.0,0.14091241]
[1745152612818,1.15398876,84301.0,84300.0,0.14091241]
[1745152613597,1.15398876,84301.0,84300.0,0.13504]
[1745152614011,1.15398876,84301.0,84300.0,0.14089857]
[1745152614797,1.10398876,84301.0,84300.0,0.14089857]
[1745152615046,1.15398876,84301.0,84300.0,0.14089857]
[1745152615889,1.10398876,84301.0,84300.0,0.14089857]
[1745152616108,0.76398876,84301.0,84300.0,0.14089857]
[1745152616578,0.76398876,84301.0,84300.0,0.00585857]
[1745152616804,0.76398876,84301.0,84300.0,0.14089857]
[1745152617015,0.76398876,84301.0,84300.0,0.13504]
[1745152617162,0.76398876,84301.0,84300.0,0.14096623]
[1745152619663,0.76398876,84301.0,84300.0,0.14100623]
[1745152619869,1.26357564,84301.0,84300.0,0.14100623]
[1745152620070,1.22506876,84301.0,84300.0,0.14100623]
[1745152620273,0.60032085,84298.0,84297.0,1.21872]
[1745152620475,1.22436876,84298.0,84297.0,1.3538]
[1745152620651,1.22536876,84298.0,84297.0,1.3538]
[1745152620856,1.22536876,84298.0,84297.0,1.35970911]
[1745152625021,1.22536876,84298.0,84297.0,1.22462911]
[1745152625245,1.28945533,84298.0,84297.0,1.35970911]
[1745152625701,1.22536876,84298.0,84297.0,1.35970911]
[1745152626586,1.46262231,84298.0,84297.0,1.35970911]
[1745152627225,1.22536876,84298.0,84297.0,1.35970911]
[1745152628487,1.22536876,84298.0,84297.0,1.3538]
[1745152628844,1.22536876,84298.0,84297.0,1.35978595]
[1745152629344,0.05,84288.0,84286.0,1.21928]
[1745152629524,0.59868876,84287.0,84286.0,1.21928]
[1745152629676,0.59868876,84287.0,84286.0,1.35436]
[1745152630083,0.13398876,84287.0,84286.0,1.35436]
[1745152634042,0.14307646,84287.0,84286.0,1.35436]
[1745152634237,0.14307646,84287.0,84286.0,1.35432]
[1745152635100,0.54599051,84287.0,84286.0,1.35432]
[1745152636953,0.54599051,84287.0,84286.0,1.35980712]
[1745152641717,0.16543842,84287.0,84286.0,1.35980712]
[1745152641888,0.16543842,84287.0,84286.0,1.35432]
[1745152642157,0.16543842,84287.0,84286.0,1.36033878]
[1745152651098,0.16543842,84287.0,84286.0,1.35933878]
[1745152651306,0.16543842,84287.0,84286.0,1.36033878]
[1745152653074,0.16543842,84287.0,84286.0,1.22529878]
[1745152653435,0.16543842,84287.0,84286.0,1.36029878]
[1745152653837,0.16543842,84287.0,84286.0,1.37411424]
[1745152654223,0.16543842,84287.0,84286.0,1.36029878]
[1745152664001,0.16543842,84287.0,84286.0,1.35929878]
[1745152683645,0.26223842,84287.0,84286.0,1.35929878]
[1745152683858,0.26223842,84287.0,84286.0,1.35925878]
[1745152684510,0.27544914,84287.0,84286.0,1.35925878]
[1745152685346,0.27644914,84287.0,84286.0,1.35925878]
[1745152686415,0.26323842,84287.0,84286.0,1.35925878]
[1745152687205,0.26323842,84287.0,84286.0,1.35408]
[1745152687428,0.26323842,84287.0,84286.0,1.35914706]
[1745152690498,0.26223842,84287.0,84286.0,1.35914706]
[1745152691382,0.16543842,84287.0,84286.0,1.35914706]
[1745152695492,0.11944791,84287.0,84286.0,1.35914706]
[1745152698751,0.21494791,84287.0,84286.0,1.35914706]
[1745152707922,0.21494791,84287.0,84286.0,1.35910706]
[1745152711499,0.21494791,84287.0,84286.0,1.22418706]
[1745152711722,0.21494791,84287.0,84286.0,1.35910706]
[1745152716786,0.21594791,84287.0,84286.0,1.35910706]
[1745152717629,0.23048876,84287.0,84286.0,1.35910706]
[1745152720421,0.21594791,84287.0,84286.0,1.35910706]
[1745152722820,0.21494791,84287.0,84286.0,1.35910706]
[1745152735068,0.21494791,84287.0,84286.0,1.35906706]
[1745152736244,0.22948876,84287.0,84286.0,1.22418706]
[1745152736460,0.22948876,84287.0,84286.0,1.35906706]
[1745152740799,0.76308876,84287.0,84286.0,1.35906706]
[1745152741001,0.76308876,84287.0,84286.0,1.354]
[1745152741207,0.76308876,84287.0,84286.0,1.35864735]
[1745152743792,0.63838876,84287.0,84286.0,1.35864735]
[1745152747548,0.93268876,84287.0,84286.0,1.35846309]
[1745152748103,0.98208876,84287.0,84286.0,1.35846309]
[1745152748528,0.98208876,84287.0,84286.0,1.3542]
[1745152748951,0.98208876,84287.0,84286.0,1.35846405]
[1745152750031,0.98108876,84287.0,84286.0,1.35846405]
[1745152750618,0.98108876,84287.0,84286.0,1.3542]
[1745152751133,0.98108876,84287.0,84286.0,1.35846412]
[1745152751633,0.98208876,84287.0,84286.0,1.35846412]
[1745152752115,0.98208876,84287.0,84286.0,1.3542]
[1745152752333,1.17786876,84287.0,84286.0,1.3542]
[1745152752580,1.17786876,84287.0,84286.0,1.35846412]
[1745152752757,1.17786876,84287.0,84286.0,1.3542]
[1745152753009,1.17786876,84287.0,84286.0,1.35846412]
[1745152754517,1.17786876,84287.0,84286.0,1.22358412]
[1745152754726,1.17786876,84287.0,84286.0,1.35846412]
[1745152758661,1.17786876,84287.0,84286.0,1.22358412]
[1745152758901,1.17786876,84287.0,84286.0,1.35842412]
[1745152760471,1.21502412,84287.0,84286.0,1.35842412]
[1745152760694,1.17786876,84287.0,84286.0,1.35842412]
[1745152760914,1.22786876,84287.0,84286.0,1.35842412]
[1745152761358,1.22786876,84287.0,84286.0,1.35416]
[1745152761789,1.22786876,84287.0,84286.0,1.35842744]
[1745152763739,1.53232566,84287.0,84286.0,1.35842744]
[1745152764196,1.53332566,84287.0,84286.0,1.35842744]
[1745152764422,1.46615327,84287.0,84286.0,1.35842744]
[1745152764901,1.46615327,84287.0,84286.0,1.22358744]
[1745152765126,1.46615327,84287.0,84286.0,1.35846744]
[1745152766054,1.46615327,84287.0,84231.0,0.004]
[1745152766055,0.01454085,84277.0,84276.0,1.21944]
[1745152766274,0.4334,84272.0,84237.0,0.0043]
[1745152766493,0.11944791,84261.0,84243.0,1.35432]
[1745152766696,0.11944791,84255.0,84244.0,0.13488]
[1745152767100,0.11944791,84255.0,84245.0,0.00393498]
[1745152767306,0.13398876,84246.0,84245.0,0.13926779]
[1745152767509,0.13398876,84246.0,84245.0,0.13533281]
[1745152767832,0.13398876,84246.0,84245.0,0.13926779]
[1745152768110,0.13398876,84246.0,84245.0,0.00438779]
[1745152768311,0.13398876,84246.0,84245.0,0.13926779]
[1745152769608,0.19621939,84246.0,84245.0,0.13926779]
[1745152769828,0.17918876,84246.0,84245.0,0.13926779]
[1745152771612,0.22498876,84246.0,84245.0,0.13926779]
[1745152772701,0.22498876,84246.0,84245.0,0.00438779]
[1745152772924,0.22498876,84246.0,84245.0,0.13926779]
[1745152773147,0.63388876,84246.0,84245.0,0.13926779]
[1745152773402,0.63388876,84246.0,84245.0,0.00438779]
[1745152773636,1.21463049,84246.0,84245.0,0.13926779]
[1745152773857,1.21463049,84246.0,84245.0,0.13533281]
[1745152773858,0.97488876,84246.0,84245.0,0.13533281]
[1745152774090,1.02388876,84246.0,84245.0,0.13936965]
[1745152774535,1.02388876,84246.0,84245.0,0.00448965]
[1745152774746,1.02388876,84246.0,84245.0,0.13936965]
[1745152774947,1.02388876,84246.0,84245.0,0.13533281]
[1745152775173,1.02388876,84246.0,84245.0,0.13936965]
[1745152776989,0.97388876,84246.0,84245.0,0.13936965]
[1745152781846,0.97388876,84246.0,84245.0,0.13533281]
[1745152782247,0.97388876,84246.0,84245.0,0.13947545]
[1745152782454,1.07911742,84246.0,84245.0,0.13947545]
[1745152782660,0.97388876,84246.0,84245.0,0.00459545]
[1745152782899,0.97388876,84246.0,84245.0,0.13537281]
[1745152783261,0.97388876,84246.0,84245.0,0.13956432]
[1745152783665,0.97488876,84246.0,84245.0,0.13956432]
[1745152784272,1.0926874,84246.0,84245.0,0.13956432]
[1745152784767,1.0926874,84246.0,84245.0,0.13537281]
[1745152785878,0.97488876,84246.0,84245.0,0.13537281]
[1745152786078,0.97388876,84246.0,84245.0,0.13537281]
[1745152786342,0.97388876,84246.0,84245.0,0.13956432]
[1745152788042,0.97388876,84246.0,84245.0,0.13537281]
[1745152788958,0.97388876,84246.0,84231.0,0.004]
[1745152789183,0.35454085,84245.0,84240.0,1.22]
[1745152789429,0.47398876,84241.0,84240.0,1.22]
[1745152790748,0.88288876,84241.0,84240.0,1.22]
[1745152791837,0.93058876,84241.0,84240.0,1.22]
[1745152792740,0.99519929,84241.0,84240.0,1.22]
[1745152792970,1.02708876,84241.0,84240.0,1.22]
[1745152793576,1.02808876,84241.0,84240.0,1.22]
[1745152794530,1.02808876,84241.0,84240.0,1.35488]
[1745152794918,1.02808876,84241.0,84240.0,1.35907151]
[1745152796538,1.13855378,84241.0,84240.0,1.35907151]
[1745152796762,1.02808876,84241.0,84240.0,1.35907151]
[1745152796966,1.02808876,84241.0,84240.0,1.35488]
[1745152797363,1.02808876,84241.0,84240.0,1.35907151]
[1745152800110,1.02708876,84241.0,84240.0,1.35907151]
[1745152802945,1.04801133,84241.0,84240.0,1.35907151]
[1745152803171,1.04801133,84241.0,84240.0,1.22419151]
[1745152803388,1.04801133,84241.0,84240.0,1.35907151]
[1745152804814,1.02708876,84241.0,84240.0,1.35907151]
[1745152805934,1.02708876,84241.0,84240.0,1.35488]
[1745152806148,1.46128284,84241.0,84240.0,1.35488]
[1745152806396,1.49555111,84241.0,84240.0,1.35908475]
[1745152811012,1.49555111,84241.0,84240.0,0.13908475]
[1745152811160,0.06454085,84232.0,84231.0,0.00013993]
[1745152811365,0.68348401,84232.0,84231.0,0.13505993]
[1745152812192,0.68348401,84232.0,84231.0,0.13892936]
[1745152816491,0.75456401,84232.0,84231.0,0.13892936]
[1745152816925,0.75456401,84232.0,84231.0,0.13505993]
[1745152817330,0.75456401,84232.0,84231.0,0.13892936]
[1745152817735,0.40454085,84231.0,84220.0,1.22024]
[1745152817967,0.40454085,84231.0,84224.0,4.657e-05]
[1745152818174,0.47398876,84225.0,84224.0,4.657e-05]
[1745152820869,0.48290043,84225.0,84224.0,4.657e-05]
[1745152822940,0.88759568,84225.0,84224.0,4.657e-05]
[1745152825872,0.88759568,84225.0,84224.0,0.00366246]
[1745152826073,0.88759568,84225.0,84224.0,4.657e-05]
[1745152826271,0.88759568,84225.0,84224.0,0.00366246]
[1745152826481,0.88759568,84225.0,84224.0,4.657e-05]
[1745152826659,0.88759568,84225.0,84224.0,0.00366246]
[1745152826866,0.93279568,84225.0,84224.0,0.00366246]
[1745152831261,0.93279568,84225.0,84224.0,0.01007157]
[1745152831491,0.93279568,84225.0,84224.0,4.657e-05]
[1745152831766,1.03107525,84225.0,84224.0,0.00672983]
[1745152831964,1.03107525,84225.0,84224.0,4.657e-05]
[1745152833468,0.93279568,84225.0,84224.0,4.657e-05]
[1745152833920,0.93279568,84225.0,84224.0,0.00673035]
[1745152834152,0.93279568,84225.0,84224.0,4.657e-05]
[1745152834347,0.98049568,84225.0,84224.0,0.00673035]
[1745152834552,0.98049568,84225.0,84224.0,4.657e-05]
[1745152835008,1.08354525,84225.0,84224.0,4.657e-05]
[1745152835463,0.98049568,84225.0,84224.0,4.657e-05]
[1745152841250,0.98049568,84225.0,84224.0,0.13492657]
[1745152841550,0.98049568,84225.0,84224.0,0.14163779]
[1745152847097,1.05157568,84225.0,84224.0,0.14163779]
[1745152847322,0.98049568,84225.0,84224.0,0.14163779]
[1745152849170,1.06945574,84225.0,84224.0,0.14163779]
[1745152849596,0.98049568,84225.0,84224.0,0.14163779]
[1745152849727,0.93049568,84225.0,84224.0,0.14163779]
[1745152860357,0.49759568,84225.0,84224.0,0.14163779]
[1745152860559,0.48305483,84225.0,84224.0,0.1805353]
[1745152860761,0.48305483,84225.0,84224.0,0.14263779]
[1745152861543,0.47414316,84225.0,84224.0,0.14263779]
[1745152862604,0.06944791,84225.0,84224.0,0.14263779]
[1745152866696,0.06944791,84225.0,84224.0,0.14259779]
[1745152867099,0.09499668,84225.0,84224.0,0.14159779]
[1745152867307,0.14019668,84225.0,84224.0,0.14159779]
[1745152868901,0.15473753,84225.0,84224.0,0.14159779]
[1745152869522,0.12918876,84225.0,84224.0,0.14159779]
[1745152870422,0.15550342,84225.0,84224.0,0.14159779]
[1745152872313,0.94929867,84225.0,84224.0,0.14159779]
[1745152881353,1.02037867,84225.0,84224.0,0.14159779]
[1745152882305,1.02037867,84225.0,84224.0,0.13488657]
[1745152884654,1.02137867,84225.0,84224.0,0.13488657]
[1745152886071,1.02037867,84225.0,84224.0,0.13488657]
[1745152887854,1.30883785,84225.0,84224.0,0.13488657]
[1745152887971,1.30783785,84225.0,84224.0,0.13488657]
[1745152888181,1.07037867,84225.0,84224.0,0.13488657]
[1745152888641,1.02037867,84225.0,84224.0,0.13488657]
[1745152888805,1.07037867,84225.0,84224.0,0.13488657]
[1745152888988,1.30783785,84225.0,84224.0,0.13488657]
[1745152889188,1.07037867,84225.0,84224.0,0.13488657]
[1745152891356,1.19507867,84225.0,84224.0,0.13488657]
[1745152893675,1.14507867,84225.0,84224.0,0.13488657]
[1745152893976,1.19507867,84225.0,84224.0,0.13488657]
[1745152895463,1.07037867,84225.0,84224.0,0.13484657]
[1745152895648,1.07037867,84225.0,84224.0,4.657e-05]
[1745152895848,1.07037867,84225.0,84224.0,0.13484657]
[1745152901975,1.19507867,84225.0,84224.0,0.13484657]
[1745152913492,1.14507867,84225.0,84224.0,0.13484657]
[1745152913690,1.19507867,84225.0,84224.0,0.13484657]
[1745152915330,1.30452387,84225.0,84224.0,0.13484657]
[1745152916030,1.30452387,84225.0,84224.0,4.657e-05]
[1745152916230,1.30452387,84225.0,84224.0,0.13480657]
[1745152916812,1.25452387,84225.0,84224.0,0.13480657]
[1745152918071,1.30452387,84225.0,84224.0,0.13480657]
[1745152918272,1.1985656,84225.0,84224.0,0.13480657]
[1745152919236,1.2485656,84225.0,84224.0,0.13480657]
[1745152920186,1.2485656,84225.0,84224.0,0.14160196]
[1745152921865,1.1985656,84225.0,84224.0,0.14160196]
[1745152922228,1.25448612,84225.0,84224.0,0.14160196]
[1745152923786,1.30448612,84225.0,84224.0,0.14160196]
[1745152924130,1.2485656,84225.0,84224.0,0.14160196]
[1745152924554,1.1985656,84225.0,84224.0,0.14160196]
[1745152924755,1.2485656,84225.0,84224.0,0.14160196]
[1745152928561,1.1985656,84225.0,84224.0,0.14160196]
[1745152929073,1.0738656,84225.0,84224.0,0.13480657]
[1745152930171,0.89394475,84225.0,84224.0,0.13480657]
[1745152930333,0.89394475,84225.0,84224.0,0.14159502]
[1745152931034,0.9084856,84225.0,84224.0,0.14159502]
[1745152932110,0.9084856,84225.0,84224.0,0.00683502]
[1745152932328,0.9084856,84225.0,84224.0,0.14159502]
[1745152932614,0.85499867,84225.0,84224.0,0.14159502]
[1745152938919,1.00019867,84225.0,84224.0,0.14159502]
[1745152939138,1.07135867,84225.0,84224.0,0.14159502]
[1745152939302,1.07135867,84225.0,84224.0,0.13480657]
[1745152942143,1.10465479,84225.0,84224.0,0.13480657]
[1745152942376,1.10465479,84225.0,84190.0,0.0004208]
[1745152942377,0.05,84198.0,84190.0,0.0004208]
[1745152942508,0.52188876,84197.0,84191.0,1.35508]
[1745152942958,0.52188876,84197.0,84192.0,0.00619062]
[1745152943271,0.47398876,84193.0,84192.0,0.00619062]
[1745152943650,0.47398876,84193.0,84192.0,0.00719062]
[1745152945150,0.48274004,84193.0,84192.0,0.00719062]
[1745152945974,0.50616454,84193.0,84192.0,0.00719062]
[1745152946585,0.91085979,84193.0,84192.0,0.00619062]
[1745152946787,0.35454085,84192.0,84191.0,1.35508]
[1745152946986,0.47398876,84192.0,84191.0,1.35508]
[1745152951954,0.87868401,84192.0,84191.0,1.35508]
[1745152953550,0.92468401,84192.0,84191.0,1.35508]
[1745152956137,0.92468401,84192.0,84158.0,0.0004208]
[1745152956316,0.92468401,84192.0,84159.0,1.35544]
[1745152956317,0.34,84181.0,84159.0,1.35544]
[1745152956529,0.11944791,84180.0,84160.0,0.00237575]
[1745152956727,0.11944791,84180.0,84160.0,0.00865698]
[1745152957048,0.11944791,84180.0,84160.0,0.00728123]
[1745152957653,0.11944791,84180.0,84160.0,0.03091153]
[1745152960570,0.11944791,84180.0,84161.0,0.13472]
[1745152960992,0.11944791,84180.0,84161.0,0.13572]
[1745152961156,0.11944791,84180.0,84162.0,0.00628123]
[1745152961594,0.11944791,84180.0,84162.0,0.00728123]
[1745152964034,0.11944791,84180.0,84162.0,0.00628123]
[1745152965790,0.09407614,84179.0,84162.0,0.00628123]
[1745152965995,0.11944791,84178.0,84162.0,0.00628123]
[1745152967545,0.21064791,84177.0,84162.0,0.00628123]
[1745152985296,0.21064791,84177.0,84163.0,0.08087878]
[1745152985520,0.11944791,84177.0,84163.0,0.04941258]
[1745152985729,0.11944791,84177.0,84164.0,0.03789751]
[1745152985927,0.11944791,84177.0,84164.0,0.001]
[1745152986126,0.11944791,84177.0,84165.0,0.00643131]
[1745152986587,0.11944791,84177.0,84165.0,0.00743131]
[1745152989464,0.11944791,84177.0,84166.0,0.04027322]
[1745152989678,0.11944791,84177.0,84166.0,0.08087859]
[1745152989860,0.11944791,84177.0,84166.0,0.08828325]
[1745152990518,0.11944791,84177.0,84166.0,0.05038574]
[1745152990943,0.11944791,84177.0,84166.0,0.00978037]
[1745152991393,0.0468,84190.0,84166.0,0.00337571]
[1745152991561,0.11944791,84189.0,84166.0,0.00337571]
[1745152994924,0.11944791,84189.0,84166.0,0.04398108]
[1745152995418,0.11944791,84189.0,84167.0,0.04691548]
[1745152995667,0.11944791,84189.0,84168.0,0.00237533]
[1745152996071,0.0469,84200.0,84168.0,0.00237533]
[1745152996072,0.0469,84200.0,84169.0,0.11944791]
[1745152996232,0.0469,84200.0,84169.0,0.12575802]
[1745152996437,0.0469,84200.0,84169.0,0.12675802]
[1745152996647,0.09407614,84199.0,84169.0,0.12675802]
[1745152997581,0.09407614,84189.0,84169.0,0.00631011]
[1745152997818,0.11944791,84188.0,84169.0,0.00631011]
[1745152998076,0.11944791,84188.0,84170.0,0.13468]
[1745152998284,0.11944791,84188.0,84170.0,0.13705536]
[1745152998453,0.11944791,84188.0,84170.0,0.14433385]
[1745152998803,0.11944791,84188.0,84171.0,1.35528]
[1745152999033,0.0488,84198.0,84172.0,0.16005328]
[1745152999234,0.0456,84202.0,84172.0,0.11944791]
[1745152999492,0.0456,84202.0,84173.0,0.00575528]
[1745152999706,0.0456,84202.0,84174.0,0.11944791]
[1745153000115,0.0456,84202.0,84175.0,0.00575528]
[1745153000418,0.0456,84202.0,84176.0,0.11944791]
[1745153000875,0.0456,84202.0,84177.0,0.00575528]
[1745153010141,0.0491,84193.0,84177.0,0.00575528]
[1745153011377,0.0454,84191.0,84171.0,1.2206]
[1745153011558,0.0454,84191.0,84178.0,0.14023205]
[1745153011762,0.0464,84191.0,84178.0,0.1346]
[1745153011995,0.0464,84191.0,84179.0,0.00563205]
[1745153014010,0.0472,84190.0,84179.0,0.00563205]
[1745153014393,0.0482,84190.0,84179.0,0.00563205]
[1745153016683,0.0482,84190.0,84180.0,1.36012271]
[1745153021681,0.001,84186.0,84180.0,1.36012271]
[1745153021885,0.0489,84185.0,84180.0,1.36012271]
[1745153022105,0.0489,84185.0,84181.0,0.00237539]
[1745153022263,0.0499,84185.0,84180.0,1.35496]
[1745153022463,0.0499,84185.0,84181.0,0.00516271]
[1745153024632,0.0499,84185.0,84182.0,0.00237541]
[1745153024975,0.0499,84185.0,84183.0,0.0051885]
[1745153025399,0.0499,84185.0,84184.0,0.00237539]
[1745153025800,0.0499,84185.0,84184.0,0.00519108]
[1745153026211,0.0499,84185.0,84180.0,1.35496]
[1745153026408,0.0499,84185.0,84184.0,0.00519137]
[1745153026609,0.0499,84185.0,84180.0,1.35496]
[1745153026810,0.0499,84185.0,84184.0,0.00519137]
[1745153027035,0.0499,84185.0,84180.0,1.35496]
[1745153027345,0.0499,84185.0,84181.0,0.00756707]
[1745153029782,0.0509,84185.0,84181.0,0.00756707]
[1745153029939,0.0499,84185.0,84181.0,0.00756707]
[1745153031793,0.0509,84185.0,84181.0,0.00756707]
[1745153031951,0.0509,84185.0,84181.0,0.00519167]
[1745153037234,0.0499,84185.0,84182.0,0.0023754]
[1745153037593,0.0499,84185.0,84183.0,0.13452]
[1745153037800,0.0499,84185.0,84184.0,0.00237529]
[1745153038333,0.0499,84185.0,84184.0,0.00756696]
[1745153038900,0.0499,84185.0,84184.0,0.00519167]
[1745153039462,0.0499,84185.0,84184.0,1.22555167]
[1745153058597,0.0499,84185.0,84184.0,1.36007167]
[1745153059961,0.0499,84185.0,84184.0,1.2204]
[1745153060164,0.0499,84185.0,84184.0,1.35492]
[1745153060324,0.0499,84185.0,84184.0,1.35967615]
[1745153064086,0.0969,84185.0,84184.0,1.35967615]
[1745153065550,0.0969,84185.0,84184.0,1.39757366]
[1745153067657,0.001,84185.0,84184.0,1.35967615]
[1745153068002,0.0456,84191.0,84184.0,1.35967615]
[1745153068209,0.0456,84191.0,84185.0,0.04027271]
[1745153068210,0.001,84191.0,84185.0,0.04027271]
[1745153068412,0.0456,84196.0,84185.0,0.04027271]
[1745153068413,0.0456,84196.0,84185.0,0.04503211]
[1745153068638,0.00113565,84192.0,84185.0,0.04503211]
[1745153068833,0.00013565,84192.0,84185.0,0.04503211]
[1745153069040,0.00013565,84192.0,84185.0,0.38503211]
[1745153069254,0.00013565,84192.0,84185.0,0.38265691]
[1745153069496,0.00013565,84192.0,84186.0,0.00237496]
[1745153069891,0.00013565,84192.0,84187.0,0.00475316]
[1745153070084,0.00013565,84192.0,84188.0,0.00237498]
[1745153070591,0.00013565,84192.0,84189.0,0.00475316]
[1745153070788,0.00013565,84192.0,84190.0,0.00237497]
[1745153071230,0.00013565,84192.0,84191.0,0.00475316]
[1745153072823,0.00013565,84192.0,84185.0,0.34]
[1745153073223,0.00013565,84192.0,84186.0,0.00475316]
[1745153075124,0.00113565,84192.0,84186.0,0.00475316]
[1745153077821,0.00113565,84192.0,84187.0,0.00237497]
[1745153078036,0.00113565,84192.0,84187.0,0.00710633]
[1745153080771,0.00113565,84192.0,84187.0,0.00473136]
[1745153080986,0.04853565,84192.0,84187.0,0.00473136]
[1745153081183,0.04853565,84192.0,84185.0,0.34]
[1745153081444,0.04853565,84192.0,84188.0,0.00473136]
[1745153081871,0.04853565,84192.0,84189.0,0.00473136]
[1745153082063,0.04853565,84192.0,84185.0,0.34]
[1745153082323,0.04853565,84192.0,84190.0,0.00473136]
[1745153082541,0.04853565,84192.0,84185.0,0.34]
[1745153082772,0.04853565,84192.0,84191.0,0.00473136]
[1745153082959,0.04853565,84192.0,84185.0,0.34]
[1745153083107,0.04853565,84192.0,84191.0,0.00473136]
[1745153083312,0.04853565,84192.0,84186.0,0.00237503]
[1745153083529,0.04853565,84192.0,84191.0,0.00473136]
[1745153083730,0.04853565,84192.0,84186.0,0.00237503]
[1745153083983,0.04853565,84192.0,84191.0,0.00472974]
[1745153084186,0.04853565,84192.0,84186.0,0.00237503]
[1745153084412,0.04853565,84192.0,84191.0,0.00472974]
[1745153085136,0.04853565,84192.0,84185.0,0.34]
[1745153085347,0.04853565,84192.0,84191.0,0.00472974]
[1745153085558,0.04853565,84192.0,84185.0,0.34]
[1745153085728,0.04853565,84192.0,84191.0,0.00472974]
[1745153085933,0.04853565,84192.0,84185.0,0.34]
[1745153086135,0.04853565,84192.0,84191.0,0.00472974]
[1745153086339,0.04853565,84192.0,84185.0,0.34]
[1745153086543,0.04853565,84192.0,84191.0,0.00472974]
[1745153086750,0.04853565,84192.0,84185.0,0.34]
[1745153087209,0.04853565,84192.0,84186.0,0.00472974]
[1745153090617,0.04853565,84192.0,84187.0,0.13448]
[1745153090959,0.04853565,84192.0,84188.0,0.34]
[1745153091162,0.04853565,84192.0,84188.0,0.34472974]
[1745153094165,0.0454,84191.0,84188.0,0.34472974]
[1745153094368,0.0464,84190.0,84188.0,0.34472974]
[1745153094578,0.0454,84189.0,84188.0,0.00472974]
[1745153094780,0.0918,84189.0,84188.0,0.13920974]
[1745153095077,0.0938,84189.0,84188.0,0.13919531]
[1745153101142,0.21424791,84189.0,84188.0,0.00471531]
[1745153101349,0.21424791,84189.0,84188.0,0.13911531]
[1745153101547,0.21424791,84189.0,84188.0,0.1344]
[1745153101915,0.21424791,84189.0,84188.0,0.13874242]
[1745153103355,0.21424791,84189.0,84188.0,0.1344]
[1745153103721,0.21424791,84189.0,84188.0,0.13838056]
[1745153106832,0.21324791,84189.0,84188.0,0.13444]
[1745153107079,0.21654791,84189.0,84188.0,0.13808884]
[1745153107594,0.2334642,84189.0,84188.0,0.13808884]
[1745153107820,0.001,84167.0,84155.0,0.03688269]
[1745153108058,0.001,84162.0,84156.0,0.13778477]
[1745153108394,0.0485,84161.0,84157.0,0.13444]
[1745153108677,0.001,84160.0,84157.0,0.13444]
[1745153108881,0.001,84158.0,84157.0,0.13444]
[1745153109457,0.001,84158.0,84157.0,0.13833065]
[1745153110449,0.001,84158.0,84157.0,0.14070688]
[1745153111522,0.001,84158.0,84157.0,0.13833065]
[1745153115303,0.001,84158.0,84157.0,1.35897065]
[1745153122846,0.0945,84158.0,84157.0,1.35897065]
[1745153143219,0.048,84164.0,84157.0,1.35897065]
[1745153143413,0.049,84164.0,84158.0,0.00237593]
[1745153143624,0.0471,84167.0,84158.0,0.00237593]
[1745153143828,0.0471,84167.0,84159.0,0.00528689]
[1745153144169,0.0471,84167.0,84160.0,0.00237592]
[1745153144791,0.0471,84167.0,84161.0,0.00528689]
[1745153144997,0.0471,84167.0,84162.0,0.00237593]
[1745153145513,0.0471,84167.0,84163.0,0.00528689]
[1745153145726,0.0471,84167.0,84164.0,0.00237594]
[1745153145939,0.0471,84167.0,84158.0,0.00237594]
[1745153146111,0.0471,84167.0,84159.0,0.00528689]
[1745153146311,0.0471,84167.0,84157.0,1.3555316]
[1745153146576,0.0471,84167.0,84158.0,0.00528689]
[1745153153633,0.0471,84167.0,84159.0,0.00237595]
[1745153154074,0.0471,84167.0,84160.0,0.00525605]
[1745153154509,0.0471,84167.0,84157.0,1.3555316]
[1745153154956,0.0471,84167.0,84158.0,0.005254]
[1745153160555,0.0471,84167.0,84159.0,0.00237601]
[1745153160556,0.0461,84167.0,84159.0,0.00237601]
[1745153160788,0.0461,84167.0,84160.0,0.00525411]
[1745153161147,0.0461,84167.0,84157.0,1.3555316]
[1745153161325,0.0461,84167.0,84158.0,0.00525411]
[1745153162768,0.0461,84167.0,84159.0,0.13436]
[1745153163318,0.0461,84167.0,84160.0,0.00525411]
[1745153167419,0.0461,84167.0,84161.0,1.2208]
[1745153167765,0.0461,84167.0,84162.0,0.00523274]
[1745153172279,0.0461,84167.0,84163.0,0.13436]
[1745153172783,0.0461,84167.0,84164.0,0.00523274]
[1745153176191,0.0499,84175.0,84164.0,0.00760871]
[1745153176404,0.0489,84175.0,84165.0,0.03789751]
[1745153176559,0.0489,84175.0,84166.0,0.00237582]
[1745153176759,0.0489,84175.0,84167.0,0.04315151]